[Event "TePe Sigeman & Co Chess Tournament 2024"]
[Site "Elite Plaza Hotel, Gustav Adolfs Torg 49, Malmo, Sweden"]
[Date "2024.05.02"]
[Round "6.2"]
[White "Korobov, Anton"]
[Black "Grandelius, Nils"]
[Result "1-0"]
[TimeControl "90 minutes for 40 moves + 30 minutes for the rest of the game + 30 seconds per move from move one. (Tiebreak rounds 8-12: 3 minutes + 2 seconds increment)"]
[WhiteTitle "GM"]
[BlackTitle "GM"]
[WhiteFideId "14105730"]
[BlackFideId "1710400"]
[WhiteElo "2651"]
[BlackElo "2664"]

1. e4 {[%clk 01:30:56]} {[%emt 00:00:02]} e5 {[%clk 01:30:08]} {[%emt
00:00:52]} 2. Nf3 {[%clk 01:31:02]} {[%emt 00:00:24]} Nc6 {[%clk 01:30:28]}
{[%emt 00:00:10]} 3. Nc3 {[%clk 01:31:25]} {[%emt 00:00:06]} Nf6 {[%clk
01:30:24]} {[%emt 00:00:34]} 4. h3 {[%clk 01:31:49]} {[%emt 00:00:06]} g6
{[%clk 01:25:14]} {[%emt 00:05:41]} 5. Bc4 {[%clk 01:31:55]} {[%emt 00:00:23]}
Bg7 {[%clk 01:25:36]} {[%emt 00:00:07]} 6. d3 {[%clk 01:32:17]} {[%emt
00:00:09]} d6 {[%clk 01:24:27]} {[%emt 00:01:39]} 7. a4 {[%clk 01:32:41]}
{[%emt 00:00:06]} O-O {[%clk 01:23:17]} {[%emt 00:01:40]} 8. O-O {[%clk
01:32:26]} {[%emt 00:00:44]} h6 {[%clk 01:18:59]} {[%emt 00:04:48]} 9. a5
{[%clk 01:32:29]} {[%emt 00:00:27]} a6 {[%clk 01:17:18]} {[%emt 00:02:11]} 10.
Nd5 {[%clk 01:29:02]} {[%emt 00:03:56]} Nxd5 {[%clk 01:10:52]} {[%emt
00:06:57]} 11. Bxd5 {[%clk 01:29:18]} {[%emt 00:00:14]} Kh7 {[%clk 01:10:56]}
{[%emt 00:00:27]} 12. c3 {[%clk 01:22:43]} {[%emt 00:07:06]} f5 {[%clk
00:59:28]} {[%emt 00:11:57]} 13. Re1 {[%clk 01:19:57]} {[%emt 00:03:15]} Qf6
{[%clk 00:51:54]} {[%emt 00:08:05]} 14. b4 {[%clk 01:09:15]} {[%emt 00:11:12]}
Ne7 {[%clk 00:48:48]} {[%emt 00:03:36]} 15. Bb3 {[%clk 01:08:07]} {[%emt
00:01:38]} g5 {[%clk 00:46:39]} {[%emt 00:02:39]} 16. exf5 {[%clk 01:02:27]}
{[%emt 00:06:10]} Bxf5 {[%clk 00:45:58]} {[%emt 00:01:10]} 17. d4 {[%clk
00:58:08]} {[%emt 00:04:49]} e4 {[%clk 00:44:22]} {[%emt 00:02:07]} 18. Nh2
{[%clk 00:57:49]} {[%emt 00:00:48]} Ng6 {[%clk 00:38:58]} {[%emt 00:05:55]} 19.
Ra2 {[%clk 00:55:31]} {[%emt 00:02:48]} Rae8 {[%clk 00:35:46]} {[%emt
00:03:41]} 20. f3 {[%clk 00:51:01]} {[%emt 00:05:01]} exf3 {[%clk 00:30:43]}
{[%emt 00:05:34]} 21. Nxf3 {[%clk 00:51:15]} {[%emt 00:00:15]} Rxe1+ {[%clk
00:24:11]} {[%emt 00:07:03]} 22. Qxe1 {[%clk 00:51:22]} {[%emt 00:00:22]} Kh8
{[%clk 00:18:39]} {[%emt 00:06:02]} 23. Rf2 {[%clk 00:48:18]} {[%emt 00:03:34]}
Qd8 {[%clk 00:18:18]} {[%emt 00:00:51]} 24. Qd1 {[%clk 00:36:19]} {[%emt
00:12:29]} g4 {[%clk 00:15:12]} {[%emt 00:03:36]} 25. hxg4 {[%clk 00:32:23]}
{[%emt 00:04:26]} Bxg4 {[%clk 00:15:40]} {[%emt 00:00:01]} 26. Qf1 {[%clk
00:31:30]} {[%emt 00:01:22]} Qe7 {[%clk 00:09:24]} {[%emt 00:06:46]} 27. Bd2
{[%clk 00:26:34]} {[%emt 00:05:27]} Qe4 {[%clk 00:06:38]} {[%emt 00:03:16]} 28.
Ne1 {[%clk 00:22:19]} {[%emt 00:04:45]} Rxf2 {[%clk 00:04:28]} {[%emt
00:02:41]} 29. Qxf2 {[%clk 00:22:29]} {[%emt 00:00:19]} Qf5 {[%clk 00:03:48]}
{[%emt 00:01:11]} 30. Qe3 {[%clk 00:22:09]} {[%emt 00:00:50]} d5 {[%clk
00:00:52]} {[%emt 00:03:27]} 31. Bc2 {[%clk 00:16:42]} {[%emt 00:05:57]} Qf7
{[%clk 00:01:16]} {[%emt 00:00:05]} 32. Qg3 {[%clk 00:17:06]} {[%emt 00:00:06]}
Bf5 {[%clk 00:00:42]} {[%emt 00:01:03]} 33. Bxf5 {[%clk 00:17:05]} {[%emt
00:00:32]} Qxf5 {[%clk 00:01:11]} {[%emt 00:00:02]} 34. Qxc7 {[%clk 00:17:27]}
{[%emt 00:00:08]} Qe4 {[%clk 00:00:39]} {[%emt 00:01:02]} 35. Nf3 {[%clk
00:13:42]} {[%emt 00:04:14]} Kh7 {[%clk 00:01:03]} {[%emt 00:00:06]} 36. Qxb7
{[%clk 00:13:37]} {[%emt 00:00:35]} 1-0

[Event "TePe Sigeman & Co Chess Tournament 2024"]
[Site "Elite Plaza Hotel, Gustav Adolfs Torg 49, Malmo, Sweden"]
[Date "2024.05.02"]
[Round "6.4"]
[White "Keymer, Vincent"]
[Black "Abdusattorov, Nodirbek"]
[Result "0-1"]
[TimeControl "90 minutes for 40 moves + 30 minutes for the rest of the game + 30 seconds per move from move one. (Tiebreak rounds 8-12: 3 minutes + 2 seconds increment)"]
[WhiteTitle "GM"]
[BlackTitle "GM"]
[WhiteFideId "12940690"]
[BlackFideId "14204118"]
[WhiteElo "2726"]
[BlackElo "2765"]

1. Nf3 {[%clk 01:30:56]} {[%emt 00:00:03]} d5 {[%clk 01:30:38]} {[%emt
00:00:22]} 2. e3 {[%clk 01:31:22]} {[%emt 00:00:05]} Nf6 {[%clk 01:30:32]}
{[%emt 00:00:35]} 3. c4 {[%clk 01:31:48]} {[%emt 00:00:05]} c6 {[%clk
01:30:51]} {[%emt 00:00:11]} 4. Nc3 {[%clk 01:31:06]} {[%emt 00:01:13]} a6
{[%clk 01:30:56]} {[%emt 00:00:25]} 5. d4 {[%clk 01:21:46]} {[%emt 00:09:49]}
b5 {[%clk 01:31:04]} {[%emt 00:00:21]} 6. b3 {[%clk 01:20:43]} {[%emt
00:01:33]} Bg4 {[%clk 01:31:04]} {[%emt 00:00:30]} 7. a4 {[%clk 01:20:00]}
{[%emt 00:01:15]} bxc4 {[%clk 01:29:30]} {[%emt 00:02:03]} 8. bxc4 {[%clk
01:20:20]} {[%emt 00:00:10]} Nbd7 {[%clk 01:29:30]} {[%emt 00:00:29]} 9. Be2
{[%clk 01:07:14]} {[%emt 00:13:36]} e6 {[%clk 01:29:34]} {[%emt 00:00:26]} 10.
c5 {[%clk 01:07:20]} {[%emt 00:00:25]} a5 {[%clk 01:29:52]} {[%emt 00:00:12]}
11. O-O {[%clk 01:03:25]} {[%emt 00:04:26]} Be7 {[%clk 01:19:49]} {[%emt
00:10:33]} 12. Ne1 {[%clk 00:52:12]} {[%emt 00:11:42]} Bxe2 {[%clk 01:16:51]}
{[%emt 00:03:28]} 13. Qxe2 {[%clk 00:52:31]} {[%emt 00:00:11]} e5 {[%clk
01:16:28]} {[%emt 00:00:53]} 14. Nd3 {[%clk 00:42:47]} {[%emt 00:10:14]} exd4
{[%clk 01:02:01]} {[%emt 00:14:57]} 15. exd4 {[%clk 00:43:13]} {[%emt
00:00:05]} O-O {[%clk 01:02:27]} {[%emt 00:00:04]} 16. f3 {[%clk 00:41:29]}
{[%emt 00:02:14]} Re8 {[%clk 01:02:00]} {[%emt 00:00:56]} 17. Qc2 {[%clk
00:37:14]} {[%emt 00:04:45]} Nf8 {[%clk 00:55:55]} {[%emt 00:06:35]} 18. Ne2
{[%clk 00:32:23]} {[%emt 00:05:21]} N6d7 {[%clk 00:54:04]} {[%emt 00:02:21]} 19.
f4 {[%clk 00:26:39]} {[%emt 00:06:15]} Ne6 {[%clk 00:48:54]} {[%emt 00:05:39]}
20. Bb2 {[%clk 00:25:57]} {[%emt 00:01:12]} Qc8 {[%clk 00:47:39]} {[%emt
00:01:45]} 21. Ng3 {[%clk 00:25:22]} {[%emt 00:01:06]} Rb8 {[%clk 00:46:11]}
{[%emt 00:01:58]} 22. Rae1 {[%clk 00:20:58]} {[%emt 00:04:54]} Bh4 {[%clk
00:33:40]} {[%emt 00:13:01]} 23. f5 {[%clk 00:13:25]} {[%emt 00:08:03]} Ng5
{[%clk 00:31:20]} {[%emt 00:02:50]} 24. Rxe8+ {[%clk 00:13:50]} {[%emt
00:00:05]} Qxe8 {[%clk 00:31:46]} {[%emt 00:00:04]} 25. Bc1 {[%clk 00:14:16]}
{[%emt 00:00:04]} Ne4 {[%clk 00:31:35]} {[%emt 00:00:41]} 26. Bf4 {[%clk
00:14:29]} {[%emt 00:00:17]} Rb7 {[%clk 00:30:17]} {[%emt 00:01:48]} 27. Nh5
{[%clk 00:09:54]} {[%emt 00:05:06]} g6 {[%clk 00:27:03]} {[%emt 00:03:44]} 28.
Ng3 {[%clk 00:07:35]} {[%emt 00:02:49]} Nxg3 {[%clk 00:26:00]} {[%emt
00:01:33]} 29. hxg3 {[%clk 00:07:23]} {[%emt 00:00:42]} Bf6 {[%clk 00:26:25]}
{[%emt 00:00:05]} 30. Qc3 {[%clk 00:00:34]} {[%emt 00:07:19]} Qe4 {[%clk
00:26:47]} {[%emt 00:00:08]} 31. Be5 {[%clk 00:00:40]} {[%emt 00:00:24]} Qe3+
{[%clk 00:12:56]} {[%emt 00:14:21]} 32. Kh2 {[%clk 00:01:06]} {[%emt 00:00:04]}
Bxe5 {[%clk 00:11:59]} {[%emt 00:01:27]} 33. dxe5 {[%clk 00:01:35]} d4 {[%clk
00:12:01]} {[%emt 00:00:28]} 34. Qc4 {[%clk 00:00:47]} {[%emt 00:01:18]} Nxe5
{[%clk 00:12:11]} {[%emt 00:00:19]} 35. Nxe5 {[%clk 00:01:16]} {[%emt
00:00:01]} Qxe5 {[%clk 00:12:28]} {[%emt 00:00:13]} 36. Qa6 {[%clk 00:01:34]}
{[%emt 00:00:12]} Qc7 {[%clk 00:11:52]} {[%emt 00:01:06]} 37. f6 {[%clk
00:00:43]} {[%emt 00:01:21]} h5 {[%clk 00:09:58]} {[%emt 00:02:24]} 38. Qe2
{[%clk 00:00:54]} {[%emt 00:00:19]} Qd8 {[%clk 00:08:43]} {[%emt 00:01:44]} 39.
Qe4 {[%clk 00:00:41]} {[%emt 00:00:43]} Rc7 {[%clk 00:07:17]} {[%emt 00:01:57]}
40. Qf4 {[%clk 00:00:36]} {[%emt 00:00:35]} Kh7 {[%clk 00:04:29]} {[%emt
00:03:18]} 41. g4 {[%clk 00:17:41]} {[%emt 00:13:25]} Rd7 {[%clk 00:32:47]}
{[%emt 00:02:12]} 42. Re1 {[%clk 00:17:44]} {[%emt 00:00:27]} Qf8 {[%clk
00:31:52]} {[%emt 00:01:25]} 43. Re5 {[%clk 00:06:55]} {[%emt 00:11:19]} hxg4
{[%clk 00:24:09]} {[%emt 00:08:13]} 44. Qxg4 {[%clk 00:04:34]} {[%emt
00:02:52]} Rd8 {[%clk 00:21:15]} {[%emt 00:03:24]} 45. Qe4 {[%clk 00:03:11]}
{[%emt 00:01:53]} Qh6+ {[%clk 00:20:28]} {[%emt 00:01:17]} 46. Kg1 {[%clk
00:03:23]} {[%emt 00:00:19]} d3 {[%clk 00:20:09]} {[%emt 00:00:49]} 47. Qc4
{[%clk 00:02:08]} {[%emt 00:01:45]} Kg8 {[%clk 00:20:02]} {[%emt 00:00:37]} 48.
Qe4 {[%clk 00:00:47]} {[%emt 00:01:52]} d2 {[%clk 00:19:40]} {[%emt 00:00:52]}
49. Re8+ {[%clk 00:01:13]} {[%emt 00:00:03]} Rxe8 {[%clk 00:20:01]} {[%emt
00:00:09]} 50. Qxe8+ {[%clk 00:01:39]} {[%emt 00:00:03]} Qf8 {[%clk 00:20:25]}
{[%emt 00:00:06]} 0-1

[Event "TePe Sigeman & Co Chess Tournament 2024"]
[Site "Elite Plaza Hotel, Gustav Adolfs Torg 49, Malmo, Sweden"]
[Date "2024.05.03"]
[Round "8.1"]
[White "Abdusattorov, Nodirbek"]
[Black "Erigaisi, Arjun"]
[Result "1/2-1/2"]
[TimeControl "90 minutes for 40 moves + 30 minutes for the rest of the game + 30 seconds per move from move one. (Tiebreak rounds 8-12: 3 minutes + 2 seconds increment)"]
[WhiteTitle "GM"]
[BlackTitle "GM"]
[WhiteFideId "14204118"]
[BlackFideId "35009192"]
[WhiteElo "2765"]
[BlackElo "2756"]

1. e4 {[%clk 00:03:03]} {[%emt 00:00:01]} e6 {[%clk 00:03:03]} {[%emt
00:00:01]} 2. d4 {[%clk 00:03:03]} {[%emt 00:00:02]} d5 {[%clk 00:03:04]}
{[%emt 00:00:01]} 3. exd5 {[%clk 00:03:03]} {[%emt 00:00:02]} exd5 {[%clk
00:03:04]} {[%emt 00:00:01]} 4. Nf3 {[%clk 00:03:04]} {[%emt 00:00:01]} Nf6
{[%clk 00:03:04]} {[%emt 00:00:02]} 5. Bd3 {[%clk 00:03:05]} {[%emt 00:00:01]}
Bd6 {[%clk 00:03:04]} {[%emt 00:00:02]} 6. O-O {[%clk 00:03:05]} {[%emt
00:00:02]} O-O {[%clk 00:03:04]} {[%emt 00:00:02]} 7. h3 {[%clk 00:03:06]} c5
{[%clk 00:03:03]} {[%emt 00:00:04]} 8. dxc5 {[%clk 00:03:04]} {[%emt 00:00:04]}
Bxc5 {[%clk 00:03:03]} {[%emt 00:00:02]} 9. Nbd2 {[%clk 00:02:56]} {[%emt
00:00:10]} Nc6 {[%clk 00:03:02]} {[%emt 00:00:03]} 10. Nb3 {[%clk 00:02:54]}
{[%emt 00:00:04]} Bb6 {[%clk 00:03:03]} {[%emt 00:00:02]} 11. c3 {[%clk
00:02:55]} Re8 {[%clk 00:03:02]} {[%emt 00:00:03]} 12. Re1 {[%clk 00:02:44]}
{[%emt 00:00:12]} h6 {[%clk 00:02:52]} {[%emt 00:00:13]} 13. Bf4 {[%clk
00:02:35]} {[%emt 00:00:11]} Ne4 {[%clk 00:02:42]} {[%emt 00:00:11]} 14. Be3
{[%clk 00:02:25]} {[%emt 00:00:12]} Bc7 {[%clk 00:02:43]} {[%emt 00:00:01]} 15.
Nbd4 {[%clk 00:02:24]} {[%emt 00:00:03]} Qf6 {[%clk 00:02:34]} {[%emt
00:00:11]} 16. Qb3 {[%clk 00:02:17]} {[%emt 00:00:08]} Nxd4 {[%clk 00:01:10]}
{[%emt 00:01:26]} 17. Bxd4 {[%clk 00:02:14]} {[%emt 00:00:05]} Qd6 {[%clk
00:01:10]} {[%emt 00:00:02]} 18. Qb4 {[%clk 00:01:59]} {[%emt 00:00:18]} Qg6
{[%clk 00:00:58]} {[%emt 00:00:13]} 19. Re3 {[%clk 00:01:12]} {[%emt 00:00:50]}
Bf4 {[%clk 00:00:44]} {[%emt 00:00:15]} 20. Rae1 {[%clk 00:01:09]} {[%emt
00:00:05]} Bxe3 {[%clk 00:00:43]} {[%emt 00:00:03]} 21. Rxe3 {[%clk 00:01:10]}
{[%emt 00:00:01]} b6 {[%clk 00:00:37]} {[%emt 00:00:08]} 22. Ne5 {[%clk
00:00:57]} {[%emt 00:00:15]} Qh5 {[%clk 00:00:29]} {[%emt 00:00:10]} 23. Qb5
{[%clk 00:00:50]} {[%emt 00:00:09]} Be6 {[%clk 00:00:17]} {[%emt 00:00:14]} 24.
Be2 {[%clk 00:00:31]} {[%emt 00:00:22]} Qh4 {[%clk 00:00:17]} 25. g3 {[%clk
00:00:24]} {[%emt 00:00:10]} Qf6 {[%clk 00:00:14]} {[%emt 00:00:05]} 26. Rf3
{[%clk 00:00:20]} {[%emt 00:00:06]} Qe7 {[%clk 00:00:14]} {[%emt 00:00:02]} 27.
h4 {[%clk 00:00:19]} {[%emt 00:00:04]} Nd6 {[%clk 00:00:14]} {[%emt 00:00:02]}
28. Qb4 {[%clk 00:00:19]} {[%emt 00:00:02]} Nf5 {[%clk 00:00:14]} {[%emt
00:00:01]} 29. Qa4 {[%clk 00:00:13]} {[%emt 00:00:08]} Nxd4 {[%clk 00:00:11]}
{[%emt 00:00:05]} 30. Qxd4 {[%clk 00:00:10]} {[%emt 00:00:05]} Bh3 {[%clk
00:00:06]} {[%emt 00:00:06]} 31. Re3 {[%clk 00:00:12]} {[%emt 00:00:01]} Qd6
{[%clk 00:00:06]} {[%emt 00:00:03]} 32. Bf3 {[%clk 00:00:13]} {[%emt 00:00:01]}
Rad8 {[%clk 00:00:06]} {[%emt 00:00:01]} 33. Kh2 {[%clk 00:00:13]} {[%emt
00:00:01]} Bf5 {[%clk 00:00:07]} {[%emt 00:00:01]} 34. Qf4 {[%clk 00:00:13]}
{[%emt 00:00:02]} Be6 {[%clk 00:00:07]} {[%emt 00:00:02]} 35. Qd4 {[%clk
00:00:11]} {[%emt 00:00:04]} Qc5 {[%clk 00:00:08]} {[%emt 00:00:02]} 36. b4
{[%clk 00:00:05]} {[%emt 00:00:09]} Qxd4 {[%clk 00:00:08]} {[%emt 00:00:01]} 37.
cxd4 {[%clk 00:00:06]} {[%emt 00:00:01]} Rc8 {[%clk 00:00:08]} {[%emt
00:00:02]} 38. Ra3 {[%clk 00:00:07]} Rc7 {[%clk 00:00:04]} {[%emt 00:00:05]} 39.
b5 {[%clk 00:00:08]} Kf8 {[%clk 00:00:05]} {[%emt 00:00:02]} 40. g4 {[%clk
00:00:07]} {[%emt 00:00:04]} Ree7 {[%clk 00:00:05]} {[%emt 00:00:02]} 41. Kg3
{[%clk 00:00:07]} {[%emt 00:00:01]} Ke8 {[%clk 00:00:05]} {[%emt 00:00:01]} 42.
Nc6 {[%clk 00:00:08]} Red7 {[%clk 00:00:06]} {[%emt 00:00:02]} 43. Kf4 {[%clk
00:00:06]} {[%emt 00:00:04]} f6 {[%clk 00:00:05]} {[%emt 00:00:03]} 44. h5
{[%clk 00:00:06]} {[%emt 00:00:02]} Bf7 {[%clk 00:00:06]} {[%emt 00:00:01]} 45.
Be2 {[%clk 00:00:06]} {[%emt 00:00:03]} Kf8 {[%clk 00:00:06]} {[%emt 00:00:02]}
46. Bd3 {[%clk 00:00:07]} {[%emt 00:00:01]} Be8 {[%clk 00:00:07]} 47. Bf5
{[%clk 00:00:06]} {[%emt 00:00:02]} Rd6 {[%clk 00:00:06]} {[%emt 00:00:03]} 48.
Nxa7 {[%clk 00:00:07]} {[%emt 00:00:01]} Rd8 {[%clk 00:00:06]} 49. Nc6 {[%clk
00:00:04]} {[%emt 00:00:06]} Bxc6 {[%clk 00:00:07]} {[%emt 00:00:01]} 50. Rc3
{[%clk 00:00:05]} Rd6 {[%clk 00:00:07]} {[%emt 00:00:02]} 51. a4 {[%clk
00:00:07]} {[%emt 00:00:01]} Ke7 {[%clk 00:00:08]} 52. bxc6 {[%clk 00:00:06]}
{[%emt 00:00:03]} Rdxc6 {[%emt 00:00:01]} 53. Rb3 Ra7 {[%clk 00:00:09]} {[%emt
00:00:02]} 54. Rb4 {[%clk 00:00:08]} {[%emt 00:00:02]} Kd6 {[%clk 00:00:08]}
{[%emt 00:00:03]} 55. Bd3 {[%clk 00:00:09]} {[%emt 00:00:01]} Kc7 {[%clk
00:00:08]} {[%emt 00:00:02]} 56. Kf5 {[%clk 00:00:09]} {[%emt 00:00:02]} Rc3
{[%clk 00:00:07]} {[%emt 00:00:02]} 57. Bb5 {[%clk 00:00:10]} {[%emt 00:00:01]}
Rf3+ {[%clk 00:00:07]} {[%emt 00:00:02]} 58. Kg6 {[%clk 00:00:10]} {[%emt
00:00:02]} Kd8 {[%clk 00:00:04]} {[%emt 00:00:06]} 59. Bc6 {[%clk 00:00:11]}
{[%emt 00:00:01]} Rf4 {[%clk 00:00:05]} {[%emt 00:00:01]} 60. f3 {[%clk
00:00:08]} {[%emt 00:00:05]} Rxf3 {[%clk 00:00:05]} {[%emt 00:00:01]} 61. Bxd5
{[%clk 00:00:10]} Rf4 {[%emt 00:00:01]} 62. Be6 Ke7 {[%clk 00:00:03]} {[%emt
00:00:05]} 63. Rxb6 {[%clk 00:00:10]} {[%emt 00:00:03]} Rxd4 {[%clk 00:00:04]}
{[%emt 00:00:01]} 64. Bf5 {[%clk 00:00:10]} {[%emt 00:00:02]} Rd6 {[%clk
00:00:04]} {[%emt 00:00:01]} 65. Rb4 {[%clk 00:00:11]} {[%emt 00:00:02]} Rda6
{[%clk 00:00:04]} {[%emt 00:00:02]} 66. Kxg7 {[%clk 00:00:12]} Rxa4 {[%clk
00:00:04]} 67. Rb3 {[%clk 00:00:14]} Ra3 {[%clk 00:00:05]} {[%emt 00:00:03]} 68.
Rb8 {[%clk 00:00:14]} {[%emt 00:00:01]} Ra8 {[%clk 00:00:04]} {[%emt 00:00:03]}
69. Rb7+ {[%clk 00:00:16]} Kd6 {[%clk 00:00:05]} 70. Kxh6 {[%clk 00:00:16]}
{[%emt 00:00:01]} R3a7 {[%clk 00:00:07]} 71. Rb6+ {[%clk 00:00:17]} {[%emt
00:00:02]} Ke5 {[%clk 00:00:07]} 72. Re6+ {[%clk 00:00:17]} {[%emt 00:00:02]}
Kf4 {[%clk 00:00:07]} {[%emt 00:00:02]} 73. Rxf6 {[%clk 00:00:18]} {[%emt
00:00:01]} Rh8+ {[%clk 00:00:07]} {[%emt 00:00:02]} 74. Kg6 {[%clk 00:00:19]}
{[%emt 00:00:01]} Rg8+ {[%clk 00:00:08]} 75. Kh6 {[%clk 00:00:20]} Rh8+ {[%clk
00:00:10]} 76. Kg6 {[%clk 00:00:22]} {[%emt 00:00:01]} Rg8+ {[%clk 00:00:11]}
1/2-1/2

[Event "TePe Sigeman & Co Chess Tournament 2024"]
[Site "Elite Plaza Hotel, Gustav Adolfs Torg 49, Malmo, Sweden"]
[Date "2024.05.03"]
[Round "9.1"]
[White "Svidler, Peter"]
[Black "Abdusattorov, Nodirbek"]
[Result "0-1"]
[TimeControl "90 minutes for 40 moves + 30 minutes for the rest of the game + 30 seconds per move from move one. (Tiebreak rounds 8-12: 3 minutes + 2 seconds increment)"]
[WhiteTitle "GM"]
[BlackTitle "GM"]
[WhiteFideId "4102142"]
[BlackFideId "14204118"]
[WhiteElo "2689"]
[BlackElo "2765"]

1. c4 {[%clk 00:03:02]} {[%emt 00:00:01]} e5 {[%clk 00:03:03]} {[%emt
00:00:02]} 2. g3 {[%clk 00:03:03]} {[%emt 00:00:01]} c6 {[%clk 00:03:03]}
{[%emt 00:00:02]} 3. d4 {[%clk 00:03:04]} exd4 {[%clk 00:03:04]} {[%emt
00:00:01]} 4. Qxd4 {[%clk 00:03:05]} Nf6 {[%clk 00:03:05]} {[%emt 00:00:01]} 5.
Nf3 {[%clk 00:03:04]} {[%emt 00:00:03]} Na6 {[%clk 00:03:05]} {[%emt 00:00:01]}
6. Bg2 {[%clk 00:03:05]} {[%emt 00:00:01]} Bc5 {[%clk 00:03:06]} 7. Qe5+ {[%clk
00:03:06]} {[%emt 00:00:01]} Be7 {[%clk 00:03:08]} 8. Nc3 {[%clk 00:03:05]}
{[%emt 00:00:02]} O-O {[%clk 00:03:06]} {[%emt 00:00:03]} 9. O-O {[%clk
00:03:06]} {[%emt 00:00:01]} Re8 {[%clk 00:03:08]} 10. Rd1 {[%clk 00:03:06]}
{[%emt 00:00:01]} Bb4 {[%clk 00:03:04]} {[%emt 00:00:05]} 11. Qf5 {[%clk
00:03:07]} {[%emt 00:00:02]} Nc5 {[%clk 00:02:47]} {[%emt 00:00:19]} 12. Qc2
{[%clk 00:02:34]} {[%emt 00:00:35]} Qe7 {[%clk 00:02:12]} {[%emt 00:00:37]} 13.
Nd4 {[%clk 00:02:28]} {[%emt 00:00:08]} d6 {[%clk 00:02:12]} {[%emt 00:00:02]}
14. a3 {[%clk 00:02:08]} {[%emt 00:00:22]} Bxc3 {[%clk 00:02:11]} {[%emt
00:00:02]} 15. Qxc3 {[%clk 00:02:09]} {[%emt 00:00:01]} Nce4 {[%clk 00:01:49]}
{[%emt 00:00:24]} 16. Qe3 {[%clk 00:02:02]} {[%emt 00:00:09]} d5 {[%clk
00:01:32]} {[%emt 00:00:20]} 17. cxd5 {[%clk 00:01:54]} {[%emt 00:00:10]} Nxd5
{[%clk 00:01:22]} {[%emt 00:00:12]} 18. Qd3 {[%clk 00:01:50]} {[%emt 00:00:05]}
Bd7 {[%clk 00:01:17]} {[%emt 00:00:07]} 19. Qc2 {[%clk 00:01:36]} {[%emt
00:00:16]} Rad8 {[%clk 00:01:11]} {[%emt 00:00:08]} 20. f3 {[%clk 00:01:34]}
{[%emt 00:00:04]} Nd6 {[%clk 00:00:49]} {[%emt 00:00:24]} 21. e4 {[%clk
00:01:34]} {[%emt 00:00:02]} Nb6 {[%clk 00:00:50]} 22. Bf4 {[%clk 00:01:06]}
{[%emt 00:00:31]} Ndc4 {[%clk 00:00:51]} {[%emt 00:00:02]} 23. a4 {[%clk
00:00:47]} {[%emt 00:00:21]} c5 {[%clk 00:00:52]} 24. Nb5 {[%clk 00:00:45]}
{[%emt 00:00:04]} Bxb5 {[%clk 00:00:49]} {[%emt 00:00:05]} 25. axb5 {[%clk
00:00:45]} {[%emt 00:00:02]} g5 {[%clk 00:00:48]} {[%emt 00:00:03]} 26. Bc1
{[%clk 00:00:42]} {[%emt 00:00:05]} Rxd1+ 27. Qxd1 {[%clk 00:00:43]} Rd8 {[%clk
00:00:48]} 28. Qc2 {[%clk 00:00:32]} {[%emt 00:00:13]} Qe5 {[%clk 00:00:48]}
{[%emt 00:00:02]} 29. Bf1 {[%clk 00:00:24]} {[%emt 00:00:10]} Qd4+ {[%clk
00:00:49]} {[%emt 00:00:01]} 30. Qf2 {[%clk 00:00:16]} {[%emt 00:00:09]} Nd2
{[%clk 00:00:21]} {[%emt 00:00:30]} 31. Bxd2 {[%clk 00:00:15]} {[%emt
00:00:04]} Qxf2+ {[%clk 00:00:22]} 32. Kxf2 {[%clk 00:00:15]} {[%emt 00:00:01]}
Rxd2+ {[%clk 00:00:24]} 33. Ke3 {[%clk 00:00:16]} Rxb2 {[%clk 00:00:21]} {[%emt
00:00:05]} 34. Rxa7 {[%clk 00:00:17]} {[%emt 00:00:01]} c4 {[%clk 00:00:19]}
{[%emt 00:00:03]} 35. Rxb7 {[%clk 00:00:17]} {[%emt 00:00:02]} Rxb5 {[%clk
00:00:20]} 36. Kd4 {[%clk 00:00:16]} {[%emt 00:00:03]} Rb4 {[%clk 00:00:21]}
{[%emt 00:00:02]} 37. Kc5 {[%clk 00:00:14]} {[%emt 00:00:04]} Rb1 {[%clk
00:00:15]} {[%emt 00:00:08]} 38. Bxc4 {[%clk 00:00:07]} {[%emt 00:00:09]} Na4+
{[%clk 00:00:16]} {[%emt 00:00:01]} 39. Kc6 {[%clk 00:00:08]} Rxb7 {[%clk
00:00:16]} {[%emt 00:00:02]} 40. Kxb7 {[%clk 00:00:09]} g4 {[%clk 00:00:14]}
{[%emt 00:00:04]} 41. f4 {[%clk 00:00:09]} {[%emt 00:00:02]} Nc5+ {[%clk
00:00:15]} {[%emt 00:00:01]} 42. Kc6 {[%clk 00:00:10]} {[%emt 00:00:01]} Nxe4
{[%clk 00:00:16]} {[%emt 00:00:01]} 43. Be2 {[%clk 00:00:06]} {[%emt 00:00:05]}
h5 {[%clk 00:00:13]} {[%emt 00:00:05]} 44. Kd5 {[%clk 00:00:07]} {[%emt
00:00:01]} Nc3+ {[%clk 00:00:14]} 0-1